{"text_format":"3","workbook":"xlsx","n_sheets":1,"sheets":["Ajánlat"],"not_rendered":{"images":1,"defined_names":20},"read":"whole","date_system":"1900"}

{"sheet":"Ajánlat","index":0,"n_rows":39,"n_cols":7,"rows_kept":39,"merged":[[0,1,3,1],[0,3,0,6],[1,4,1,6],[2,4,2,6],[32,3,35,4],[36,3,36,6],[37,3,37,5],[38,3,38,5]]}
[{"$nulls":3},"ÉPÍTÉSI AJÁNLAT"]
[{"$nulls":3},"Cég neve","| Ebben a cellában adhatja meg a cég címének irányítószám és település részét."]
[{"$nulls":3},"Telefonszám","| Ebben a cellában adhatja meg a cég faxszámát és kapcsolattartási e-mail-címét."]
[{"$nulls":3},"MENNYISÉG","LEÍRÁS","EGYSÉGÁR","ÖSSZEG"]
[null,"VEVŐ",null,10,"1. tétel",{"v":165,"d":"165.00 Ft"},{"$f":"IFERROR(Sortételek[[#This Row],[MENNYISÉG]]*Sortételek[[#This Row],[EGYSÉGÁR]], \"\")","v":{"v":1650,"d":"1,650.00 Ft"}}]
[null,"Ebben a cellában adhatja meg a vevő nevét.",null,21,"2. tétel",{"v":40,"d":"40.00 Ft"},{"$f":"IFERROR(Sortételek[[#This Row],[MENNYISÉG]]*Sortételek[[#This Row],[EGYSÉGÁR]], \"\")","v":{"v":840,"d":"840.00 Ft"}}]
[null,"BECSÜLT SZ",null,5,"3. tétel",{"v":10.5,"d":"10.50 Ft"},{"$f":"IFERROR(Sortételek[[#This Row],[MENNYISÉG]]*Sortételek[[#This Row],[EGYSÉGÁR]], \"\")","v":{"v":52.5,"d":"52.50 Ft"}}]
[null,"C-1234",null,164,"4. tétel",{"v":2.75,"d":"2.75 Ft"},{"$f":"IFERROR(Sortételek[[#This Row],[MENNYISÉG]]*Sortételek[[#This Row],[EGYSÉGÁR]], \"\")","v":{"v":451,"d":"451.00 Ft"}}]
[null,"DÁTUM",null,6,"5. tétel",{"v":12,"d":"12.00 Ft"},{"$f":"IFERROR(Sortételek[[#This Row],[MENNYISÉG]]*Sortételek[[#This Row],[EGYSÉGÁR]], \"\")","v":{"v":72,"d":"72.00 Ft"}}]
[null,{"$f":"TODAY()","v":"2018-11-16"},null,18,"6. tétel",{"v":5.5,"d":"5.50 Ft"},{"$f":"IFERROR(Sortételek[[#This Row],[MENNYISÉG]]*Sortételek[[#This Row],[EGYSÉGÁR]], \"\")","v":{"v":99,"d":"99.00 Ft"}}]
[null,"LAKCÍM",null,1,"7. tétel",{"v":25,"d":"25.00 Ft"},{"$f":"IFERROR(Sortételek[[#This Row],[MENNYISÉG]]*Sortételek[[#This Row],[EGYSÉGÁR]], \"\")","v":{"v":25,"d":"25.00 Ft"}}]
[null,"Ebben a cellában a vevő irányítószámát és települését adhatja meg.",{"$nulls":4},{"$f":"IFERROR(Sortételek[[#This Row],[MENNYISÉG]]*Sortételek[[#This Row],[EGYSÉGÁR]], \"\")","v":{"v":0,"d":"0.00 Ft"}}]
[null,"UTCA/HÁZSZÁM",{"$nulls":4},{"$f":"IFERROR(Sortételek[[#This Row],[MENNYISÉG]]*Sortételek[[#This Row],[EGYSÉGÁR]], \"\")","v":{"v":0,"d":"0.00 Ft"}}]
[null,"Ebbe a cellában a vevő címének utca és házszám részét írhatja be.",{"$nulls":4},{"$f":"IFERROR(Sortételek[[#This Row],[MENNYISÉG]]*Sortételek[[#This Row],[EGYSÉGÁR]], \"\")","v":{"v":0,"d":"0.00 Ft"}}]
[null,"TELEFONSZÁM",{"$nulls":4},{"$f":"IFERROR(Sortételek[[#This Row],[MENNYISÉG]]*Sortételek[[#This Row],[EGYSÉGÁR]], \"\")","v":{"v":0,"d":"0.00 Ft"}}]
[null,"Ebben a cellában adhatja meg a vevő telefonszámát.",{"$nulls":4},{"$f":"IFERROR(Sortételek[[#This Row],[MENNYISÉG]]*Sortételek[[#This Row],[EGYSÉGÁR]], \"\")","v":{"v":0,"d":"0.00 Ft"}}]
[null,"E-MAIL-CÍM",{"$nulls":4},{"$f":"IFERROR(Sortételek[[#This Row],[MENNYISÉG]]*Sortételek[[#This Row],[EGYSÉGÁR]], \"\")","v":{"v":0,"d":"0.00 Ft"}}]
[null,"Ebben a cellában adhatja meg a vevő e-mail-címét.",{"$nulls":4},{"$f":"IFERROR(Sortételek[[#This Row],[MENNYISÉG]]*Sortételek[[#This Row],[EGYSÉGÁR]], \"\")","v":{"v":0,"d":"0.00 Ft"}}]
[null,"ÜZLETKÖTŐ",{"$nulls":4},{"$f":"IFERROR(Sortételek[[#This Row],[MENNYISÉG]]*Sortételek[[#This Row],[EGYSÉGÁR]], \"\")","v":{"v":0,"d":"0.00 Ft"}}]
[null,"Ebben a cellában adhatja meg az üzletkötőt.",{"$nulls":4},{"$f":"IFERROR(Sortételek[[#This Row],[MENNYISÉG]]*Sortételek[[#This Row],[EGYSÉGÁR]], \"\")","v":{"v":0,"d":"0.00 Ft"}}]
[null,"PROJEKT",{"$nulls":4},{"$f":"IFERROR(Sortételek[[#This Row],[MENNYISÉG]]*Sortételek[[#This Row],[EGYSÉGÁR]], \"\")","v":{"v":0,"d":"0.00 Ft"}}]
[null,"Ebben a cellában adhatja meg a projekt nevét.",{"$nulls":4},{"$f":"IFERROR(Sortételek[[#This Row],[MENNYISÉG]]*Sortételek[[#This Row],[EGYSÉGÁR]], \"\")","v":{"v":0,"d":"0.00 Ft"}}]
[null,"Készítő:",{"$nulls":4},{"$f":"IFERROR(Sortételek[[#This Row],[MENNYISÉG]]*Sortételek[[#This Row],[EGYSÉGÁR]], \"\")","v":{"v":0,"d":"0.00 Ft"}}]
[null,"Ebben a cellában adhatja meg az ajánlatot készítő személy nevét.",{"$nulls":4},{"$f":"IFERROR(Sortételek[[#This Row],[MENNYISÉG]]*Sortételek[[#This Row],[EGYSÉGÁR]], \"\")","v":{"v":0,"d":"0.00 Ft"}}]
[null,"CÍMZETT",{"$nulls":4},{"$f":"IFERROR(Sortételek[[#This Row],[MENNYISÉG]]*Sortételek[[#This Row],[EGYSÉGÁR]], \"\")","v":{"v":0,"d":"0.00 Ft"}}]
[null,"Ebben a cellában adhatja meg annak a személynek a nevét, akinek a figyelmébe ajánlja az árajánlatot.",{"$nulls":4},{"$f":"IFERROR(Sortételek[[#This Row],[MENNYISÉG]]*Sortételek[[#This Row],[EGYSÉGÁR]], \"\")","v":{"v":0,"d":"0.00 Ft"}}]
[null,"FIZETÉSI FELTÉTELEK",{"$nulls":4},{"$f":"IFERROR(Sortételek[[#This Row],[MENNYISÉG]]*Sortételek[[#This Row],[EGYSÉGÁR]], \"\")","v":{"v":0,"d":"0.00 Ft"}}]
[null,"30 napon belül",{"$nulls":4},{"$f":"IFERROR(Sortételek[[#This Row],[MENNYISÉG]]*Sortételek[[#This Row],[EGYSÉGÁR]], \"\")","v":{"v":0,"d":"0.00 Ft"}}]
[null,"HATÁRIDŐ",{"$nulls":4},{"$f":"IFERROR(Sortételek[[#This Row],[MENNYISÉG]]*Sortételek[[#This Row],[EGYSÉGÁR]], \"\")","v":{"v":0,"d":"0.00 Ft"}}]
[null,{"$f":"TODAY()+30","v":"2018-12-16"},{"$nulls":4},{"$f":"IFERROR(Sortételek[[#This Row],[MENNYISÉG]]*Sortételek[[#This Row],[EGYSÉGÁR]], \"\")","v":{"v":0,"d":"0.00 Ft"}}]
[{"$nulls":5},"RÉSZÖSSZEG",{"$f":"SUBTOTAL(109,Sortételek[ÖSSZEG])","v":{"v":3189.5,"d":"3,189.50 Ft"}}]
[{"$nulls":3},"EZ AZ AJÁNLAT A KÖVETKEZŐ FELTÉTELEK MELLETT ÉRVÉNYES:",null,"ÁFAKULCS ",{"v":0.0775,"d":"7.75%"}]
[{"$nulls":3},"Itt adhatja meg a feltételeket.",null,"ÁFA ",{"$f":"IFERROR(Részösszeg*Áfakulcs, \"\")","v":{"v":247.18625,"d":"247.19 Ft"}}]
[{"$nulls":5},"EGYÉB "]
[{"$nulls":5},"ÖSSZESEN ",{"$f":"IFERROR(Részösszeg+G33+Egyéb, \"\")","v":{"v":3436.68625,"d":"3,436.69 Ft"}}]
[]
[{"$nulls":3},"Az árajánlat elfogadásához írja alá:"]
[]
[{"$nulls":3},"Felhatalmazott képviselő",null,null,"Dátum"]